bitfinex/quotes_SOLUSD_20240824
["timestamp","ask_amount","ask_price","bid_price","bid_amount"]
[1724529706349,6.21,161.03,160.97,15.9921]
[1724529706753,6.21,161.03,160.93,15.9921]
[1724529706919,29.68493362,161.04,160.93,15.9921]
[1724529707118,6.2111,161.01,160.93,15.9921]
[1724529711347,20.0,161.03,160.93,15.9921]
[1724529711547,29.68493362,161.02,160.93,15.9921]
[1724529711739,20.0,161.01,160.93,15.9921]
[1724529713323,20.0,161.01,160.89,16.1006]
[1724529713324,29.68493362,161.0,160.89,16.1006]
[1724529713525,29.68493362,160.98,160.89,16.1006]
[1724529715154,6.2123,160.97,160.89,16.1006]
[1724529716463,29.68493362,160.98,160.89,16.1006]
[1724529716662,6.2134,160.95,160.89,16.1006]
[1724529722275,6.2127,160.96,160.89,16.1006]
[1724529723165,26.2124,160.97,160.89,16.1006]
[1724529725770,20.0,160.97,160.89,16.1006]
[1724529727971,18.08995958,160.98,160.89,16.1006]
[1724529728168,11.87805958,160.99,160.89,16.1006]
[1724529728344,11.87805958,161.01,160.9,11.87805958]
[1724529728663,20.0,161.0,160.9,11.87805958]
[1724529729155,26.2112,161.0,160.9,11.87805958]
[1724529730174,6.2115,160.99,160.9,11.87805958]
[1724529730582,18.08955958,160.99,160.9,11.87805958]
[1724529730772,6.2121,160.98,160.9,11.87805958]
[1724529730953,6.2121,160.98,160.89,16.1006]
[1724529731272,6.2121,160.98,160.9,45.0]
[1724529732352,6.2121,160.98,160.9,56.87805958]
[1724529732875,6.2121,160.98,160.9,45.0]
[1724529735081,18.09015958,160.98,160.89,16.1006]
[1724529735278,11.87805958,160.98,160.89,16.1006]
[1724529735453,20.0,161.0,160.89,16.1006]
[1724529735454,11.87805958,160.96,160.89,16.1006]
[1724529736052,11.87805958,160.94,160.88,6.6163]
[1724529737196,18.09165958,160.94,160.88,6.6163]
[1724529738287,11.87805958,160.94,160.88,6.6163]
[1724529740070,6.2131,160.95,160.88,6.6163]
[1724529740557,6.2131,160.95,160.88,18.49435958]
[1724529741670,6.2131,160.95,160.88,6.6163]
[1724529742878,11.87805958,160.98,160.88,18.49435958]
[1724529743191,11.87805958,160.98,160.89,15.3462]
[1724529743489,6.2119,160.98,160.9,11.87805958]
[1724529744694,6.2119,160.98,160.89,60.3462]
[1724529744914,18.08995958,160.98,160.89,60.3462]
[1724529745713,11.87805958,160.96,160.89,15.3462]
[1724529746130,15.1125,161.06,160.95,15.3462]
[1724529746419,6.2092,161.05,160.97,29.65471955]
[1724529746592,6.0212,161.08,160.97,29.65471955]
[1724529746795,6.2088,161.06,160.97,29.65471955]
[1724529747003,6.2085,161.07,160.97,29.65471955]
[1724529747713,20.0,161.06,160.97,29.65471955]
[1724529748094,20.0,161.06,160.98,1.5547404]
[1724529748400,20.0,161.06,160.97,29.65471955]
[1724529748401,20.0,161.06,160.99,1.5547404]
[1724529748603,20.0,161.06,160.97,29.65471955]
[1724529748794,20.0,161.06,160.98,1.55475727]
[1724529748993,20.0,161.06,160.97,29.65471955]
[1724529749201,20.0,161.06,160.98,1.55480879]
[1724529749415,20.0,161.06,160.97,29.65471955]
[1724529749712,20.0,161.06,160.98,1.55480158]
[1724529749915,20.0,161.06,160.97,29.65471955]
[1724529750094,20.0,161.06,160.98,1.55480078]
[1724529750298,20.0,161.06,160.97,29.65471955]
[1724529750490,26.2086,161.07,160.98,1.55479371]
[1724529750694,26.2086,161.07,160.97,29.65471955]
[1724529751087,26.2086,161.07,160.98,1.55486602]
[1724529751291,26.2086,161.07,160.96,11.07192098]
[1724529751603,26.2086,161.07,160.97,1.554763]
[1724529751812,26.2086,161.07,160.98,1.554763]
[1724529752021,26.2086,161.07,160.96,11.07192098]
[1724529752224,26.2086,161.07,160.97,1.55474843]
[1724529752518,20.0,161.07,160.98,1.55474843]
[1724529752701,20.0,161.08,160.96,11.07192098]
[1724529752895,20.0,161.08,160.97,1.55474003]
[1724529753095,20.0,161.08,160.96,11.07192098]
[1724529753096,6.2089,161.06,160.98,1.55474003]
[1724529753310,6.2097,161.04,160.97,1.55474003]
[1724529753509,6.2092,161.05,160.96,7.96364003]
[1724529753705,6.2092,161.05,160.97,1.55474003]
[1724529754090,6.2092,161.05,160.96,7.96364003]
[1724529756493,6.2089,161.06,160.96,7.96364003]
[1724529756693,6.2089,161.06,160.96,7.96372643]
[1724529759419,20.0,161.08,160.96,7.96372643]
[1724529759625,74.65471955,161.07,160.96,6.4089]
[1724529759925,20.0,161.06,160.96,6.4089]
[1724529761434,6.2092,161.05,160.96,6.4089]
[1724529761907,20.0,161.06,160.96,6.4089]
[1724529762099,26.2091,161.06,160.96,6.4089]
[1724529763703,20.0,161.06,160.97,45.0]
[1724529765392,20.0,161.06,160.98,15.0524]
[1724529765596,35.86331955,161.07,160.98,15.0524]
[1724529766529,18.07255594,161.07,160.98,15.0524]
[1724529769033,6.2086,161.07,160.98,15.0524]
[1724529769328,11.86395594,161.06,160.98,15.0524]
[1724529769710,6.2081,161.08,160.98,15.0524]
[1724529769925,11.86395594,161.06,160.98,15.0524]
[1724529771128,11.86395594,161.04,160.98,15.0524]
[1724529771920,11.86395594,161.03,160.98,15.0524]
[1724529772127,6.2095,161.05,160.98,15.0524]
[1724529772327,11.86395594,161.03,160.98,15.0524]
[1724529772632,6.2095,161.05,160.98,15.0524]
[1724529772823,11.86395594,161.04,160.98,15.0524]
[1724529773645,6.2095,161.05,160.98,15.0524]
[1724529773817,18.07345594,161.05,160.98,15.0524]
[1724529774843,6.2095,161.05,160.98,15.0524]
[1724529775033,11.86395594,161.04,160.98,15.0524]
[1724529776418,18.07375594,161.04,160.98,15.0524]
[1724529776635,11.86395594,161.04,160.98,15.0524]
[1724529779344,6.2088,161.06,160.98,15.0524]
[1724529779549,18.07275594,161.06,160.98,15.0524]
[1724529780226,11.86395594,161.06,160.98,15.0524]
[1724529784265,18.07285594,161.06,160.98,15.0524]
[1724529786937,6.2093,161.05,160.98,15.0524]
[1724529787156,6.2093,161.05,160.99,1.5548068]
[1724529787359,6.2093,161.05,160.98,15.0524]
[1724529787663,6.2093,161.05,160.99,1.5548068]
[1724529787962,6.2093,161.05,160.98,15.0524]
[1724529788154,6.2093,161.05,160.99,1.55481538]
[1724529788358,6.2093,161.05,160.98,15.0524]
[1724529788662,6.2093,161.05,160.99,1.55481538]
[1724529788842,6.2093,161.05,160.98,15.0524]
[1724529789048,6.2093,161.05,160.99,1.5548068]
[1724529789362,6.2093,161.05,161.0,1.5548068]
[1724529789563,6.2093,161.05,160.98,15.0524]
[1724529789748,6.2093,161.05,160.99,1.5548068]
[1724529790068,6.2093,161.05,160.98,15.0524]
[1724529790249,6.2093,161.05,160.99,1.55485334]
[1724529790564,6.2093,161.05,161.0,1.55485334]
[1724529790764,6.2093,161.05,160.98,15.0524]
[1724529791136,6.2093,161.05,160.99,1.55485778]
[1724529791338,6.2093,161.05,161.0,1.55485778]
[1724529791539,6.2093,161.05,161.01,1.55485778]
[1724529791754,6.2093,161.05,160.98,15.0524]
[1724529791962,6.2093,161.05,160.99,6.21813652]
[1724529792146,6.2093,161.05,161.0,6.2181374]
[1724529792348,6.2093,161.05,161.01,1.55485698]
[1724529792561,6.2093,161.05,161.02,1.55485698]
[1724529792869,6.2093,161.05,160.99,3.02420794]
[1724529793057,6.2093,161.05,161.0,6.21813548]
[1724529793360,6.2093,161.05,161.01,1.5548567]
[1724529793592,6.2093,161.05,161.02,1.5548567]
[1724529793768,6.2093,161.05,160.99,3.02420755]
[1724529793954,6.2093,161.05,161.0,6.21813548]
[1724529794153,6.2093,161.05,160.98,15.0524]
[1724529794476,6.2093,161.05,160.99,9.24234501]
[1724529794640,6.2093,161.05,161.0,4.6632801]
[1724529794838,6.2093,161.05,161.0,1.55485719]
[1724529795049,6.2093,161.05,161.01,1.55485719]
[1724529795269,6.2093,161.05,161.02,1.55485719]
[1724529795464,6.2093,161.05,160.98,15.0524]
[1724529795665,6.2089,161.06,160.99,6.21812193]
[1724529795972,18.07285594,161.06,161.0,6.21812193]
[1724529796168,18.07285594,161.06,161.01,1.55485307]
[1724529796468,18.07285594,161.06,161.02,1.55485307]
[1724529796679,18.07285594,161.06,160.98,15.0524]
[1724529796861,18.07285594,161.06,160.99,6.21812132]
[1724529797173,18.07285594,161.06,161.0,6.21812132]
[1724529797375,18.07285594,161.06,161.01,1.55485291]
[1724529797578,6.2089,161.06,161.02,1.55485253]
[1724529797751,6.2089,161.06,160.98,15.0524]
[1724529797953,6.2089,161.06,160.99,6.21811871]
[1724529798153,6.2089,161.06,161.0,6.21811871]
[1724529798351,6.2089,161.06,161.01,1.55485221]
[1724529798553,6.2085,161.07,160.98,15.0524]
[1724529798768,20.0,161.06,160.99,6.2181202]
[1724529798973,20.0,161.06,161.0,6.2181202]
[1724529799273,20.0,161.06,161.01,1.55485237]
[1724529799465,20.0,161.06,161.02,1.55485237]
[1724529799669,20.0,161.06,160.99,6.562]
[1724529799978,20.0,161.06,161.0,6.21812052]
[1724529800143,20.0,161.06,161.01,1.55485269]
[1724529800342,20.0,161.06,161.02,1.55485269]
[1724529800573,20.0,161.06,160.99,6.562]
[1724529800944,20.0,161.06,161.0,4.66324438]
[1724529801179,20.0,161.08,161.01,17.06654411]
[1724529801479,11.86395594,161.09,161.02,1.55484411]
[1724529801668,11.86395594,161.09,161.03,1.55484411]
[1724529801872,6.2074,161.1,161.02,6.562]
[1724529802172,6.2074,161.1,161.03,1.55481175]
[1724529802381,6.2074,161.1,161.02,6.562]
[1724529802675,6.2074,161.1,161.03,1.55480113]
[1724529802976,6.2074,161.1,161.02,6.562]
[1724529803150,6.2074,161.1,161.03,1.55479995]
[1724529803353,6.2074,161.1,161.04,1.55479995]
[1724529803557,6.2074,161.1,161.05,1.55479995]
[1724529803868,6.2074,161.1,161.06,1.55450282]
[1724529804173,6.2074,161.1,161.02,6.562]
[1724529804364,6.2074,161.1,161.07,1.55441961]
[1724529804568,6.2074,161.1,161.03,4.66208388]
[1724529804774,6.2074,161.1,161.04,1.55442242]
[1724529805253,6.2074,161.1,161.05,1.55442242]
[1724529805454,6.2074,161.1,161.02,6.562]
[1724529806175,6.2074,161.1,161.02,7.80374967]
[1724529807271,6.2074,161.1,161.02,6.562]
[1724529808375,11.86395594,161.11,161.02,6.562]
[1724529808555,20.0,161.1,161.02,6.562]
[1724529809278,26.2073,161.1,161.02,6.562]
[1724529810277,6.2073,161.1,161.02,6.562]
[1724529811581,6.2069,161.11,161.04,16.6658]
[1724529811780,11.86395594,161.14,161.05,1.24160148]
[1724529811781,6.2065,161.13,161.05,1.24160148]
[1724529811985,6.2065,161.13,161.04,16.6658]
[1724529812276,6.2065,161.12,161.04,16.6658]
[1724529817867,11.86395594,161.08,161.04,16.6658]
[1724529818077,6.2087,161.07,161.04,16.6658]
[1724529818486,6.2088,161.06,161.04,16.6658]
[1724529818989,6.2085,161.07,161.04,16.6658]
[1724529819902,6.2089,161.06,161.04,16.6658]
[1724529820077,11.86395594,161.08,161.04,16.6658]
[1724529821202,6.2085,161.07,161.04,16.6658]
[1724529823397,18.07195594,161.09,161.04,16.6658]
[1724529823592,20.0,161.08,161.04,16.6658]
[1724529826680,26.2082,161.08,161.04,16.6658]
[1724529827303,20.0,161.08,161.04,16.6658]
[1724529828197,18.07195594,161.09,161.04,16.6658]
[1724529829101,6.2085,161.07,161.04,16.6658]
[1724529829307,6.2085,161.07,161.02,6.562]
[1724529829308,6.2092,161.05,161.0,16.6658]
[1724529829606,18.07315594,161.05,161.0,16.6658]
[1724529836809,6.2104,161.02,161.0,16.6658]
[1724529837020,11.86395594,161.05,161.0,16.6658]
[1724529837209,6.2099,161.04,161.0,16.6658]
[1724529838636,6.2085,161.07,161.0,16.6658]
[1724529838824,31.86395594,161.06,161.0,16.6658]
[1724529841193,6.2093,161.05,161.0,16.6658]
[1724529842317,6.2096,161.04,161.0,16.6658]
[1724529843012,31.86395594,161.06,161.0,16.6658]
[1724529843325,6.2092,161.05,161.0,16.6658]
[1724529843914,6.2096,161.04,161.0,16.6658]
[1724529844121,31.86395594,161.06,161.0,16.6658]
[1724529846230,6.2099,161.04,161.0,16.6658]
[1724529854040,31.86395594,161.06,161.0,16.6658]
[1724529855311,6.2096,161.04,161.0,16.6658]
[1724529855712,6.2096,161.04,160.98,6.0531]
[1724529855713,6.2107,161.01,160.98,6.0531]
[1724529855936,11.86395594,161.04,160.98,6.0531]
[1724529856110,6.2103,161.03,160.98,6.0531]
[1724529857628,6.2105,161.02,160.98,6.0531]
[1724529860323,6.21,161.03,160.98,6.0531]
[1724529864531,6.2104,161.02,160.98,6.0531]
[1724529865638,6.2101,161.03,160.98,6.0531]
[1724529867768,6.2101,161.03,160.99,1.55500095]
[1724529867970,6.2101,161.03,160.98,6.0531]
[1724529868263,6.2101,161.03,160.99,1.55500763]
[1724529868452,6.2101,161.03,160.98,6.0531]
[1724529868652,6.2101,161.03,160.99,1.55500763]
[1724529868861,6.2101,161.03,160.98,6.0531]
[1724529869059,6.2101,161.03,160.99,1.55500763]
[1724529869246,6.2101,161.03,160.98,6.0531]
[1724529869575,6.2101,161.03,160.99,1.55500763]
[1724529869751,6.2101,161.03,160.98,6.0531]
[1724529869939,6.2101,161.03,160.99,1.55500763]
[1724529870139,6.2101,161.03,160.98,6.0531]
[1724529870372,6.2101,161.03,160.99,1.55500763]
[1724529870575,47.38695594,161.06,160.98,6.0531]
[1724529870576,6.2096,161.04,160.98,6.0531]
[1724529870865,6.2096,161.04,160.99,1.55500747]
[1724529871072,6.2096,161.04,160.98,6.0531]
[1724529871565,6.2096,161.04,160.99,1.55499121]
[1724529871768,6.2096,161.04,160.98,6.0531]
[1724529871953,6.2096,161.04,160.99,1.55498157]
[1724529872158,6.2096,161.04,160.98,6.0531]
[1724529872350,6.2096,161.04,160.99,1.55498173]
[1724529872550,6.2096,161.04,160.98,6.0531]
[1724529872866,6.2096,161.04,160.99,1.55499031]
[1724529873073,6.2096,161.04,161.0,1.55494731]
[1724529873369,6.2096,161.04,160.98,6.0531]
[1724529873982,6.2096,161.04,160.99,1.55496318]
[1724529874268,6.2096,161.04,160.98,6.0531]
[1724529874439,6.2096,161.04,160.99,1.55499889]
[1724529874641,6.2096,161.04,160.98,6.0531]
[1724529874874,6.2096,161.04,160.99,1.55499889]
[1724529875170,6.2096,161.04,160.98,6.0531]
[1724529875370,6.2096,161.04,160.99,1.55499873]
[1724529875672,6.2096,161.04,160.98,6.0531]
[1724529875846,6.2096,161.04,160.99,1.55499889]
[1724529876047,6.2096,161.04,160.98,6.0531]
[1724529876345,6.2096,161.04,160.99,1.55499889]
[1724529876547,6.2096,161.04,160.98,6.0531]
[1724529876748,6.2096,161.04,160.99,1.55499889]
[1724529876947,6.2096,161.04,160.98,6.0531]
[1724529877174,6.2096,161.04,160.99,1.55499889]
[1724529877475,6.2096,161.04,160.98,6.0531]
[1724529877775,6.2096,161.04,160.99,1.55499889]
[1724529877954,6.2096,161.04,160.98,6.0531]
[1724529878266,6.2096,161.04,160.99,1.55500632]
[1724529878474,6.2096,161.04,160.98,6.0531]
[1724529878776,6.2096,161.04,160.99,1.55500617]
[1724529878971,6.2096,161.04,160.98,6.0531]
[1724529879176,6.2096,161.04,160.99,1.5550073]
[1724529879342,6.2096,161.04,160.98,6.0531]
[1724529879544,6.2096,161.04,160.99,1.55500746]
[1724529879744,6.2096,161.04,160.98,6.0531]
[1724529879985,6.2096,161.04,160.99,1.5550073]
[1724529880174,6.2096,161.04,161.0,1.55500301]
[1724529880484,6.2096,161.04,160.98,6.0531]
[1724529880667,6.2096,161.04,160.99,1.5549946]
[1724529880866,6.2096,161.04,161.0,1.5549946]
[1724529881069,6.2096,161.04,160.98,6.0531]
[1724529881282,6.2096,161.04,160.99,1.55500284]
[1724529881460,6.2096,161.04,160.98,6.0531]
[1724529882082,6.21,161.03,160.98,6.0531]
[1724529891109,6.21,161.03,160.96,15.4499]
[1724529891468,6.21,161.03,160.97,7.68826736]
[1724529891669,6.21,161.03,160.97,4.66369465]
[1724529892289,6.21,161.03,160.98,4.66369465]
[1724529892491,6.21,161.03,160.96,15.4499]
[1724529892691,6.21,161.03,160.97,7.68826117]
[1724529892875,6.21,161.03,160.98,4.66369135]
[1724529893076,6.21,161.03,160.96,15.4499]
[1724529893368,6.21,161.03,160.97,7.68826117]
[1724529893562,6.21,161.03,160.98,4.66369135]
[1724529893794,6.21,161.03,160.96,15.4499]
[1724529894094,6.21,161.03,160.97,7.68826206]
[1724529894299,6.21,161.03,160.98,4.6636918]
[1724529894601,6.21,161.03,160.96,15.4499]
[1724529894895,6.21,161.03,160.97,7.68830458]
[1724529895199,6.21,161.03,160.98,4.66371447]
[1724529895503,6.21,161.03,160.96,15.4499]
[1724529895687,6.21,161.03,160.97,7.68831094]
[1724529895888,6.21,161.03,160.98,4.66371827]
[1724529896090,6.21,161.03,160.96,15.4499]
[1724529896293,6.21,161.03,160.97,4.66371447]
[1724529896496,6.21,161.03,160.98,4.66371447]
[1724529896794,6.21,161.03,160.96,15.4499]
[1724529897091,6.21,161.03,160.97,4.66371827]
[1724529897392,6.21,161.03,160.98,4.66371827]
[1724529897580,6.21,161.03,160.96,15.4499]
[1724529897784,6.21,161.03,160.97,4.66371447]
[1724529897980,6.21,161.03,160.98,4.66371447]
[1724529898185,6.21,161.03,160.96,15.4499]
[1724529898383,6.21,161.03,160.97,4.66371738]
[1724529898589,6.21,161.03,160.98,4.66371738]
[1724529898780,6.21,161.03,160.96,15.4499]
[1724529898978,6.21,161.03,160.97,4.66369103]
[1724529899184,6.21,161.03,160.98,4.66369103]
[1724529899500,6.21,161.03,160.96,15.4499]
[1724529899702,6.2104,161.02,160.97,4.66369483]
[1724529899871,18.07435594,161.02,160.98,4.66369483]
[1724529900075,18.07435594,161.02,160.94,6.0158]
[1724529900276,18.07435594,161.02,160.95,4.66374029]
[1724529900477,18.07435594,161.02,160.94,6.0158]
[1724529900478,18.07435594,161.02,160.96,4.66374029]
[1724529900794,18.07435594,161.02,160.97,4.66374029]
[1724529900999,18.07435594,161.02,160.98,4.66374029]
[1724529901209,18.07435594,161.02,160.94,6.0158]
[1724529901376,6.2108,161.01,160.95,4.66371491]
[1724529901677,6.2108,161.01,160.96,4.66371491]
[1724529901878,6.2108,161.01,160.97,4.66371491]
[1724529902067,6.2108,161.01,160.92,28.42455594]
[1724529902068,6.2108,161.01,160.92,16.5606]
[1724529902272,20.0,161.06,160.94,11.86395594]
[1724529902511,11.86395594,161.04,160.95,5.90644972]
[1724529902701,18.07365594,161.04,160.96,1.24232197]
[1724529902888,18.07365594,161.04,160.97,4.66391912]
[1724529903087,18.07365594,161.04,160.94,11.86395594]
[1724529903299,18.07365594,161.04,160.95,4.66390332]
[1724529903497,18.07365594,161.04,160.96,4.66390332]
[1724529903818,18.07365594,161.04,160.97,4.66390332]
[1724529903992,18.07365594,161.04,160.94,11.86395594]
[1724529904315,18.07365594,161.04,160.98,4.66373797]
[1724529904486,18.07365594,161.04,160.94,11.86395594]
[1724529904682,18.07365594,161.04,160.95,4.66369138]
[1724529904887,18.07365594,161.04,160.96,4.66369138]
[1724529905185,18.07365594,161.04,160.94,11.86395594]
[1724529905186,18.07365594,161.04,160.97,4.66369138]
[1724529905385,18.07365594,161.04,160.98,4.66369138]
[1724529905587,18.07365594,161.04,160.94,11.86395594]
[1724529905907,18.07365594,161.04,160.95,4.66373925]
[1724529906085,18.07365594,161.04,160.96,4.66373925]
[1724529906284,18.07365594,161.04,160.97,4.66373925]
[1724529906504,18.07365594,161.04,160.94,11.86395594]
[1724529907907,6.2101,161.03,160.92,16.5606]
[1724529908204,6.2101,161.03,160.93,11.86395594]
[1724529908414,6.2104,161.02,160.93,11.86395594]
[1724529915316,6.21,161.03,160.94,1.24245654]
[1724529921417,6.21,161.03,160.94,1.24245654]
[1724529922630,6.21,161.03,160.94,13.10641248]
[1724529927018,6.2105,161.02,160.94,13.10641248]
[1724529927338,45.0,161.05,160.96,11.86395594]
[1724529927636,6.2092,161.05,160.96,11.86395594]
[1724529928426,51.2089,161.06,160.97,7.4625697]
[1724529928628,51.2089,161.06,160.96,11.86395594]
[1724529928824,51.2089,161.06,160.97,7.46253322]
[1724529929035,51.2089,161.06,160.98,7.46253322]
[1724529929235,51.2089,161.06,160.96,11.86395594]
[1724529929532,51.2089,161.06,160.97,7.461923]
[1724529929704,51.2089,161.06,160.98,7.461923]
[1724529929908,51.2089,161.06,160.96,11.86395594]
[1724529930223,51.2089,161.06,160.97,7.46175891]
[1724529930426,51.2089,161.06,160.98,7.46175891]
[1724529930621,51.2089,161.06,160.96,11.86395594]
[1724529930805,51.2089,161.06,160.97,7.46174579]
[1724529931011,51.2089,161.06,160.98,7.46174579]
[1724529931211,51.2089,161.06,160.96,11.86395594]
[1724529931438,51.2089,161.06,160.97,7.46178565]
[1724529931614,51.2089,161.06,160.98,7.46178565]
[1724529931913,51.2089,161.06,160.96,11.86395594]
[1724529932112,51.2089,161.06,160.97,7.46181934]
[1724529932332,51.2089,161.06,160.98,7.46181934]
[1724529932634,51.2089,161.06,160.96,11.86395594]
[1724529932811,51.2089,161.06,160.97,7.46178406]
[1724529933013,51.2089,161.06,160.98,7.46178406]
[1724529933347,51.2089,161.06,160.96,11.86395594]
[1724529933642,51.2089,161.06,160.97,7.46174732]
[1724529933812,51.2089,161.06,160.98,7.46174732]
[1724529934013,51.2089,161.06,160.96,11.86395594]
[1724529934237,11.86395594,161.1,161.0,11.86395594]
[1724529935310,6.208,161.09,161.0,11.86395594]
[1724529935811,15.4601,161.11,161.02,11.86395594]
[1724529936009,15.4601,161.11,161.04,11.86395594]
[1724529937921,6.5699,161.12,161.04,11.86395594]
[1724529938620,18.07005594,161.14,161.04,11.86395594]
[1724529938824,15.4601,161.15,161.04,11.86395594]
[1724529939019,20.0,161.14,161.04,11.86395594]
[1724529939337,6.2058,161.14,161.04,11.86395594]
[1724529939526,6.2058,161.14,161.06,11.86395594]
[1724529939710,15.4601,161.15,161.06,11.86395594]
[1724529941125,21.6655,161.15,161.06,11.86395594]
[1724529942837,6.2054,161.15,161.06,11.86395594]
[1724529943917,18.06935594,161.15,161.06,11.86395594]
[1724529945632,6.2054,161.15,161.06,11.86395594]
[1724529947149,6.2058,161.14,161.06,11.86395594]
[1724529953357,27.32405594,161.19,161.08,11.86395594]
[1724529953554,45.0,161.18,161.08,11.86395594]
[1724529954053,6.2043,161.18,161.1,11.86395594]
[1724529956244,6.2051,161.16,161.08,11.86395594]
[1724529968758,6.2047,161.17,161.1,11.86395594]
[1724529969574,6.2039,161.19,161.1,11.86395594]
[1724529970161,6.2042,161.18,161.1,11.86395594]
[1724529978393,6.2042,161.18,161.1,10.9964092]
[1724529979679,6.2042,161.18,161.09,16.0687]
[1724529979880,6.2042,161.18,161.1,1.55375619]
[1724529980068,6.2042,161.18,161.09,16.0687]
[1724529980394,6.2042,161.18,161.1,1.55375619]
[1724529980596,6.2042,161.18,161.09,16.0687]
[1724529980790,6.2042,161.18,161.1,1.55372577]
[1724529981099,6.2042,161.18,161.09,16.0687]
[1724529981273,6.2042,161.18,161.1,1.55372577]
[1724529981472,6.2042,161.18,161.09,16.0687]
[1724529981681,6.2042,161.18,161.1,1.55372593]
[1724529981884,6.2042,161.18,161.09,16.0687]
[1724529982084,6.2042,161.18,161.1,1.55373433]
[1724529982395,6.2042,161.18,161.09,16.0687]
[1724529982598,6.2042,161.18,161.1,1.55373464]
[1724529982806,6.2042,161.18,161.09,16.0687]
[1724529982994,6.2042,161.18,161.1,1.55373449]
[1724529983175,6.2042,161.18,161.09,16.0687]
[1724529983375,6.2042,161.18,161.1,1.55372593]
[1724529983685,6.2042,161.18,161.09,16.0687]
[1724529983873,6.2042,161.18,161.1,1.55372593]
[1724529984079,6.2042,161.18,161.11,1.55372593]
[1724529984279,6.2042,161.18,161.09,16.0687]
[1724529984507,6.2042,161.18,161.1,1.55371816]
[1724529984801,6.2042,161.18,161.11,1.55371816]
[1724529984998,6.2042,161.18,161.09,16.0687]
[1724529985195,6.2039,161.19,161.1,46.55371742]
[1724529985499,6.2039,161.19,161.11,1.55371742]
[1724529985704,6.2043,161.18,161.09,16.0687]
[1724529985876,6.2043,161.18,161.1,1.55372593]
[1724529986077,18.06825594,161.18,161.11,1.55372593]
[1724529986300,18.06825594,161.18,161.09,16.0687]
[1724529986484,18.06825594,161.18,161.1,1.55373553]
[1724529986689,18.06825594,161.18,161.11,1.55372676]
[1724529986894,18.06825594,161.18,161.09,16.0687]
[1724529987104,18.06825594,161.18,161.1,1.5537266]
[1724529987292,18.06825594,161.18,161.11,1.5537266]
[1724529987604,18.06825594,161.18,161.09,16.0687]
[1724529987816,6.2049,161.17,161.1,1.5537352]
[1724529988106,6.2049,161.17,161.11,1.5537352]
[1724529988291,6.2049,161.17,161.09,16.0687]
[1724529988475,6.2049,161.17,161.1,1.55373537]
[1724529988678,15.5074,161.22,161.09,16.0687]
[1724529988679,6.2041,161.19,161.11,1.55373537]
[1724529988878,6.2041,161.19,161.09,27.93265594]
[1724529989079,6.2041,161.19,161.1,1.55368557]
[1724529989308,6.2041,161.19,161.11,1.55368557]
[1724529989478,6.2041,161.19,161.09,27.93265594]
[1724529989804,6.2041,161.19,161.1,1.55368664]
[1724529989976,6.2041,161.19,161.11,1.55368664]
[1724529990276,6.2041,161.19,161.09,27.93265594]
[1724529990603,6.2041,161.19,161.1,1.55368075]
[1724529990777,6.2041,161.19,161.11,1.55368075]
[1724529991078,6.2041,161.19,161.09,27.93265594]
[1724529991280,6.2041,161.19,161.1,1.55368075]
[1724529991479,6.2041,161.19,161.11,1.55368075]
[1724529991779,6.2041,161.19,161.09,27.93265594]
[1724529992106,6.2041,161.19,161.1,1.55368043]
[1724529992412,6.2041,161.19,161.09,27.93265594]
[1724529992591,11.86395594,161.18,161.09,16.0687]
[1724529992799,11.86395594,161.16,161.09,16.0687]
[1724529993115,11.86395594,161.14,161.07,6.0161]
[1724529993324,11.86395594,161.14,161.08,7.6819734]
[1724529993615,11.86395594,161.14,161.08,7.68199098]
[1724529993996,11.86395594,161.14,161.08,4.6603609]
[1724529994203,6.2063,161.13,161.08,7.68203686]
[1724529994510,6.2063,161.13,161.08,3.02167596]
[1724529995018,6.2063,161.13,161.07,6.0161]
[1724529995226,6.2063,161.13,161.07,9.03777596]
[1724529995398,6.2077,161.09,161.06,3.02167596]
[1724529995608,6.2069,161.11,161.05,15.2991]